[Event "Titled Tuesday Blitz April 26 Early 2022"]
[White "Deac, Bogdan-Daniel"]
[Black "Paravyan, David"]
[WhiteFideId "1226380"]
[BlackFideId "4194985"]
[WhiteElo "2648"]
[BlackElo "2569"]
[Result "1/2-1/2"]
[Round "05"]
[TimeControl "180+1"]
[Date "2022.04.26"]
[WhiteClock "0:00:07"]
[BlackClock "0:00:08"]

1. d4 {[%clk 0:02:33]}  Nf6 {[%clk 0:02:59]} 2. c4 {[%clk 0:02:34]}  g6 {[%clk 0:02:58]} 3. Nc3 {[%clk 0:02:34]}  d5 {[%clk 0:02:57]} 4. cxd5 {[%clk 0:02:35]}  Nxd5 {[%clk 0:02:56]} 5. e4 {[%clk 0:02:36]}  Nxc3 {[%clk 0:02:56]} 6. bxc3 {[%clk 0:02:36]}  Bg7 {[%clk 0:02:57]} 7. Nf3 {[%clk 0:02:37]}  c5 {[%clk 0:02:56]} 8. Bb5+ {[%clk 0:02:38]}  Nc6 {[%clk 0:02:56]} 9. O-O {[%clk 0:02:38]}  O-O {[%clk 0:02:57]} 10. Bxc6 {[%clk 0:02:39]}  bxc6 {[%clk 0:02:58]} 11. Qc2 {[%clk 0:02:39]}  cxd4 {[%clk 0:02:52]} 12. cxd4 {[%clk 0:02:40]}  Bg4 {[%clk 0:02:52]} 13. Ne5 {[%clk 0:02:40]}  Qxd4 {[%clk 0:02:50]} 14. Bb2 {[%clk 0:02:41]}  Qb4 {[%clk 0:02:48]} 15. Rab1 {[%clk 0:02:40]}  Bxe5 {[%clk 0:02:48]} 16. Bxe5 {[%clk 0:02:41]}  Qa5 {[%clk 0:02:49]} 17. Bc3 {[%clk 0:02:41]}  Qa6 {[%clk 0:02:49]} 18. Ba1 {[%clk 0:02:32]}  Rad8 {[%clk 0:02:09]} 19. Rfe1 {[%clk 0:02:15]}  Be6 {[%clk 0:01:53]} 20. a4 {[%clk 0:02:03]}  Qc4 {[%clk 0:01:40]} 21. Qxc4 {[%clk 0:01:32]}  Bxc4 {[%clk 0:01:41]} 22. Rb7 {[%clk 0:01:32]}  Rfe8 {[%clk 0:01:40]} 23. Rxa7 {[%clk 0:01:32]}  Ra8 {[%clk 0:01:38]} 24. Bd4 {[%clk 0:01:27]}  Rxa7 {[%clk 0:01:32]} 25. Bxa7 {[%clk 0:01:28]}  Ra8 {[%clk 0:01:32]} 26. Bc5 {[%clk 0:01:29]}  Rxa4 {[%clk 0:01:24]} 27. Bxe7 {[%clk 0:01:24]}  f5 {[%clk 0:01:20]} 28. exf5 {[%clk 0:01:11]}  gxf5 {[%clk 0:01:21]} 29. f3 {[%clk 0:01:11]}  Ra2 {[%clk 0:01:14]} 30. Rb1 {[%clk 0:00:44]}  Kf7 {[%clk 0:01:12]} 31. Rb7 {[%clk 0:00:35]}  Kg6 {[%clk 0:01:05]} 32. h3 {[%clk 0:00:22]}  Rd2 {[%clk 0:00:48]} 33. Rc7 {[%clk 0:00:17]}  Bb5 {[%clk 0:00:43]} 34. Bb4 {[%clk 0:00:16]}  Rc2 {[%clk 0:00:41]} 35. Bf8 {[%clk 0:00:15]}  h5 {[%clk 0:00:30]} 36. h4 {[%clk 0:00:15]}  Rc4 {[%clk 0:00:21]} 37. Be7 {[%clk 0:00:11]}  Rd4 {[%clk 0:00:14]} 38. Bg5 {[%clk 0:00:09]}  Rd6 {[%clk 0:00:13]} 39. Kh2 {[%clk 0:00:07]}  Re6 {[%clk 0:00:08]} 40. Kg3 {[%clk 0:00:06]}  Re2 {[%clk 0:00:06]} 41. Rc8 {[%clk 0:00:05]}  Rc2 {[%clk 0:00:06]} 42. Rg8+ {[%clk 0:00:03]}  Kh7 {[%clk 0:00:06]} 43. Rf8 {[%clk 0:00:03]}  Bf1 {[%clk 0:00:06]} 44. Rxf5 {[%clk 0:00:03]}  Rxg2+ {[%clk 0:00:06]} 45. Kf4 {[%clk 0:00:03]}  Bc4 {[%clk 0:00:07]} 46. Rf6 {[%clk 0:00:03]}  Bd5 {[%clk 0:00:05]} 47. Ke5 {[%clk 0:00:03]}  Re2+ {[%clk 0:00:05]} 48. Kd6 {[%clk 0:00:03]}  Kg7 {[%clk 0:00:06]} 49. f4 {[%clk 0:00:03]}  Bf3 {[%clk 0:00:04]} 50. f5 {[%clk 0:00:03]}  Bg4 {[%clk 0:00:05]} 51. Rg6+ {[%clk 0:00:03]}  Kf7 {[%clk 0:00:05]} 52. Rf6+ {[%clk 0:00:03]}  Kg7 {[%clk 0:00:05]} 53. Rg6+ {[%clk 0:00:03]}  Kf7 {[%clk 0:00:06]} 54. Kxc6 {[%clk 0:00:04]}  Rf2 {[%clk 0:00:06]} 55. Rf6+ {[%clk 0:00:04]}  Kg7 {[%clk 0:00:07]} 56. Kd6 {[%clk 0:00:05]}  Rxf5 {[%clk 0:00:07]} 57. Rxf5 {[%clk 0:00:05]}  Bxf5 {[%clk 0:00:07]} 58. Ke5 {[%clk 0:00:06]}  Bg4 {[%clk 0:00:08]} 59. Kf4 {[%clk 0:00:07]}  Kg6 {[%clk 0:00:08]} 1/2-1/2


[Site "https://www.chess.com"]

[Event "Titled Tuesday Blitz April 26 Early 2022"]
[White "Donchenko, Alexander"]
[Black "Fedoseev, Vladimir"]
[WhiteFideId "24603295"]
[BlackFideId "24130737"]
[WhiteElo "2539"]
[BlackElo "2726"]
[Result "1-0"]
[Round "05"]
[TimeControl "180+1"]
[Date "2022.04.26"]
[WhiteClock "0:00:17"]
[BlackClock "0:00:02"]

1. d4 {[%clk 0:02:58]}  Nf6 {[%clk 0:02:58]} 2. Nf3 {[%clk 0:02:58]}  g6 {[%clk 0:02:58]} 3. g3 {[%clk 0:02:58]}  Bg7 {[%clk 0:02:58]} 4. Bg2 {[%clk 0:02:59]}  O-O {[%clk 0:02:59]} 5. O-O {[%clk 0:02:59]}  d6 {[%clk 0:02:58]} 6. b3 {[%clk 0:03:00]}  b5 {[%clk 0:02:55]} 7. a4 {[%clk 0:02:58]}  b4 {[%clk 0:02:55]} 8. Nbd2 {[%clk 0:02:56]}  Bb7 {[%clk 0:02:52]} 9. Bb2 {[%clk 0:02:56]}  a5 {[%clk 0:02:51]} 10. Re1 {[%clk 0:02:54]}  Nfd7 {[%clk 0:02:46]} 11. e4 {[%clk 0:02:47]}  c5 {[%clk 0:02:39]} 12. Nc4 {[%clk 0:02:46]}  Nc6 {[%clk 0:02:16]} 13. d5 {[%clk 0:02:44]}  Nce5 {[%clk 0:01:56]} 14. Nfxe5 {[%clk 0:02:44]}  Nxe5 {[%clk 0:01:55]} 15. Bxe5 {[%clk 0:02:44]}  Bxe5 {[%clk 0:01:52]} 16. Nxe5 {[%clk 0:02:44]}  dxe5 {[%clk 0:01:52]} 17. c4 {[%clk 0:02:35]}  Qd6 {[%clk 0:01:35]} 18. Qe2 {[%clk 0:02:34]}  Kh8 {[%clk 0:01:25]} 19. Rf1 {[%clk 0:02:33]}  g5 {[%clk 0:01:26]} 20. Bh3 {[%clk 0:02:27]}  Rg8 {[%clk 0:01:19]} 21. Qh5 {[%clk 0:02:19]}  Rg7 {[%clk 0:01:06]} 22. Rae1 {[%clk 0:02:16]}  Rag8 {[%clk 0:01:01]} 23. Bg4 {[%clk 0:02:13]}  Qf6 {[%clk 0:00:59]} 24. Qh3 {[%clk 0:02:05]}  Rg6 {[%clk 0:00:56]} 25. Qg2 {[%clk 0:01:59]}  Bc8 {[%clk 0:00:33]} 26. h3 {[%clk 0:01:56]}  h5 {[%clk 0:00:25]} 27. Bxh5 {[%clk 0:01:30]}  Rh6 {[%clk 0:00:25]} 28. g4 {[%clk 0:01:30]}  Rxh5 {[%clk 0:00:17]} 29. gxh5 {[%clk 0:01:30]}  Qh6 {[%clk 0:00:11]} 30. Re3 {[%clk 0:01:15]}  Qxh5 {[%clk 0:00:10]} 31. Rg3 {[%clk 0:01:15]}  f6 {[%clk 0:00:10]} 32. Qf3 {[%clk 0:01:14]}  Qh4 {[%clk 0:00:09]} 33. Kg2 {[%clk 0:01:10]}  Kg7 {[%clk 0:00:09]} 34. Rd1 {[%clk 0:01:08]}  Rd8 {[%clk 0:00:06]} 35. Qe3 {[%clk 0:01:08]}  Bd7 {[%clk 0:00:06]} 36. d6 {[%clk 0:01:04]}  Bc6 {[%clk 0:00:05]} 37. Qxc5 {[%clk 0:00:57]}  Qxe4+ {[%clk 0:00:03]} 38. Kf1 {[%clk 0:00:21]}  Rxd6 {[%clk 0:00:03]} 39. Rxd6 {[%clk 0:00:21]}  Qb1+ {[%clk 0:00:03]} 40. Ke2 {[%clk 0:00:21]}  exd6 {[%clk 0:00:03]} 41. Qxc6 {[%clk 0:00:21]}  Qc2+ {[%clk 0:00:03]} 42. Kf1 {[%clk 0:00:21]}  Qd1+ {[%clk 0:00:03]} 43. Kg2 {[%clk 0:00:21]}  Qd4 {[%clk 0:00:04]} 44. Qd7+ {[%clk 0:00:20]}  Kg6 {[%clk 0:00:04]} 45. Qe8+ {[%clk 0:00:20]}  Kf5 {[%clk 0:00:04]} 46. Qc6 {[%clk 0:00:18]}  Kg6 {[%clk 0:00:05]} 47. Qa8 {[%clk 0:00:17]}  Qc5 {[%clk 0:00:03]} 48. Qd5 {[%clk 0:00:17]}  Qc7 {[%clk 0:00:02]} 49. Rd3 {[%clk 0:00:17]} 1-0


[Site "https://www.chess.com"]

[Event "Titled Tuesday Blitz April 26 Early 2022"]
[White "Dwilewicz, Katarzyna"]
[Black "Andrews, Todd"]
[WhiteFideId "1148486"]
[BlackFideId "2012456"]
[WhiteElo "1907"]
[BlackElo "2343"]
[Result "0-1"]
[Round "05"]
[TimeControl "180+1"]
[Date "2022.04.26"]
[WhiteClock "0:00:02"]
[BlackClock "0:00:16"]

1. e4 {[%clk 0:02:34]}  e6 {[%clk 0:02:58]} 2. d4 {[%clk 0:02:32]}  d5 {[%clk 0:02:56]} 3. exd5 {[%clk 0:02:31]}  exd5 {[%clk 0:02:56]} 4. Nf3 {[%clk 0:02:31]}  Bg4 {[%clk 0:02:54]} 5. h3 {[%clk 0:02:30]}  Bh5 {[%clk 0:02:54]} 6. Bd3 {[%clk 0:02:27]}  Bd6 {[%clk 0:02:54]} 7. O-O {[%clk 0:02:26]}  Ne7 {[%clk 0:02:53]} 8. Re1 {[%clk 0:02:23]}  Nc6 {[%clk 0:02:53]} 9. c3 {[%clk 0:02:21]}  Qd7 {[%clk 0:02:53]} 10. Nbd2 {[%clk 0:02:18]}  f6 {[%clk 0:02:49]} 11. Nf1 {[%clk 0:01:59]}  O-O-O {[%clk 0:02:48]} 12. Ng3 {[%clk 0:01:56]}  Bg6 {[%clk 0:02:46]} 13. Nh4 {[%clk 0:01:50]}  Kb8 {[%clk 0:02:40]} 14. Nxg6 {[%clk 0:01:49]}  hxg6 {[%clk 0:02:40]} 15. Qf3 {[%clk 0:01:46]}  Rh4 {[%clk 0:01:50]} 16. b4 {[%clk 0:01:42]}  Rdh8 {[%clk 0:01:45]} 17. b5 {[%clk 0:01:42]}  Nd8 {[%clk 0:01:45]} 18. a4 {[%clk 0:01:40]}  Nf7 {[%clk 0:01:39]} 19. a5 {[%clk 0:01:32]}  g5 {[%clk 0:01:21]} 20. Nf5 {[%clk 0:01:21]}  g4 {[%clk 0:01:17]} 21. Rxe7 {[%clk 0:00:55]}  Bxe7 {[%clk 0:01:16]} 22. Qe2 {[%clk 0:00:49]}  gxh3 {[%clk 0:00:59]} 23. Qxe7 {[%clk 0:00:35]}  Qxe7 {[%clk 0:00:48]} 24. Nxe7 {[%clk 0:00:36]}  Re8 {[%clk 0:00:46]} 25. Ba3 {[%clk 0:00:36]}  h2+ {[%clk 0:00:40]} 26. Kh1 {[%clk 0:00:36]}  Ng5 {[%clk 0:00:35]} 27. Bg6 {[%clk 0:00:24]}  Ne4 {[%clk 0:00:32]} 28. Bxe4 {[%clk 0:00:13]}  Rxe4 {[%clk 0:00:29]} 29. Kxh2 {[%clk 0:00:13]}  R8xe7 {[%clk 0:00:27]} 30. Bxe7 {[%clk 0:00:13]}  Rxe7 {[%clk 0:00:27]} 31. Kg3 {[%clk 0:00:14]}  Re2 {[%clk 0:00:27]} 32. Kf3 {[%clk 0:00:11]}  Rc2 {[%clk 0:00:27]} 33. Re1 {[%clk 0:00:10]}  Rxc3+ {[%clk 0:00:27]} 34. Kg4 {[%clk 0:00:10]}  Kc8 {[%clk 0:00:24]} 35. Re7 {[%clk 0:00:10]}  Rc4 {[%clk 0:00:23]} 36. Rxg7 {[%clk 0:00:10]}  Rxd4+ {[%clk 0:00:23]} 37. Kf5 {[%clk 0:00:11]}  c5 {[%clk 0:00:23]} 38. bxc6 {[%clk 0:00:10]}  bxc6 {[%clk 0:00:22]} 39. Rxa7 {[%clk 0:00:10]}  c5 {[%clk 0:00:22]} 40. f3 {[%clk 0:00:06]}  c4 {[%clk 0:00:21]} 41. Kxf6 {[%clk 0:00:06]}  c3 {[%clk 0:00:21]} 42. Ra8+ {[%clk 0:00:03]}  Kb7 {[%clk 0:00:19]} 43. Rh8 {[%clk 0:00:02]}  c2 {[%clk 0:00:19]} 44. a6+ {[%clk 0:00:02]}  Kxa6 {[%clk 0:00:17]} 45. Ra8+ {[%clk 0:00:01]}  Kb7 {[%clk 0:00:16]} 46. Ra1 {[%clk 0:00:02]}  Rd1 {[%clk 0:00:16]} 0-1


[Site "https://www.chess.com"]

[Event "Titled Tuesday Blitz April 26 Early 2022"]
[White "Esipenko, Andrey"]
[Black "Sanal, Vahap"]
[WhiteFideId "24175439"]
[BlackFideId "6300545"]
[WhiteElo "2617"]
[BlackElo "2603"]
[Result "1-0"]
[Round "05"]
[TimeControl "180+1"]
[Date "2022.04.26"]
[WhiteClock "0:00:13"]
[BlackClock "0:00:05"]

1. d4 {[%clk 0:03:00]}  Nf6 {[%clk 0:02:30]} 2. c4 {[%clk 0:03:00]}  e6 {[%clk 0:02:29]} 3. Nc3 {[%clk 0:03:00]}  Bb4 {[%clk 0:02:29]} 4. e3 {[%clk 0:03:01]}  c5 {[%clk 0:02:28]} 5. d5 {[%clk 0:02:56]}  exd5 {[%clk 0:02:19]} 6. cxd5 {[%clk 0:02:55]}  d6 {[%clk 0:02:17]} 7. Bd3 {[%clk 0:02:54]}  O-O {[%clk 0:02:12]} 8. Ne2 {[%clk 0:02:53]}  Nxd5 {[%clk 0:02:05]} 9. Bxh7+ {[%clk 0:02:52]}  Kxh7 {[%clk 0:02:06]} 10. Qxd5 {[%clk 0:02:52]}  Nc6 {[%clk 0:02:05]} 11. O-O {[%clk 0:02:52]}  Be6 {[%clk 0:02:05]} 12. Qh5+ {[%clk 0:02:52]}  Kg8 {[%clk 0:02:04]} 13. e4 {[%clk 0:02:49]}  Bc4 {[%clk 0:01:45]} 14. Rd1 {[%clk 0:02:48]}  Bxc3 {[%clk 0:01:33]} 15. Nxc3 {[%clk 0:02:38]}  Nd4 {[%clk 0:01:33]} 16. Bg5 {[%clk 0:02:30]}  f6 {[%clk 0:01:32]} 17. Bf4 {[%clk 0:02:30]}  b5 {[%clk 0:01:28]} 18. Rd2 {[%clk 0:01:57]}  Qd7 {[%clk 0:01:13]} 19. Be3 {[%clk 0:01:51]}  Bf7 {[%clk 0:01:06]} 20. Qd1 {[%clk 0:01:48]}  b4 {[%clk 0:01:02]} 21. Bxd4 {[%clk 0:01:48]}  cxd4 {[%clk 0:01:01]} 22. Ne2 {[%clk 0:01:48]}  Rfe8 {[%clk 0:00:51]} 23. Rxd4 {[%clk 0:01:48]}  Qb5 {[%clk 0:00:50]} 24. Ng3 {[%clk 0:01:42]}  d5 {[%clk 0:00:48]} 25. exd5 {[%clk 0:01:42]}  Rad8 {[%clk 0:00:48]} 26. d6 {[%clk 0:01:41]}  Rd7 {[%clk 0:00:47]} 27. Qd2 {[%clk 0:01:39]}  Red8 {[%clk 0:00:47]} 28. Rxb4 {[%clk 0:01:22]}  Qe5 {[%clk 0:00:48]} 29. Ne4 {[%clk 0:00:47]}  f5 {[%clk 0:00:43]} 30. Nc3 {[%clk 0:00:38]}  Rxd6 {[%clk 0:00:42]} 31. Qe1 {[%clk 0:00:39]}  Qf6 {[%clk 0:00:31]} 32. h3 {[%clk 0:00:38]}  Re8 {[%clk 0:00:32]} 33. Qc1 {[%clk 0:00:35]}  a5 {[%clk 0:00:27]} 34. Ra4 {[%clk 0:00:35]}  g5 {[%clk 0:00:20]} 35. Rxa5 {[%clk 0:00:21]}  f4 {[%clk 0:00:21]} 36. Qc2 {[%clk 0:00:18]}  Bg6 {[%clk 0:00:19]} 37. Qb3+ {[%clk 0:00:17]}  Kh7 {[%clk 0:00:17]} 38. Qb5 {[%clk 0:00:13]}  Kh6 {[%clk 0:00:14]} 39. Qc5 {[%clk 0:00:13]}  Rd2 {[%clk 0:00:12]} 40. Rf1 {[%clk 0:00:13]}  Rxb2 {[%clk 0:00:12]} 41. Nd5 {[%clk 0:00:13]}  Qe5 {[%clk 0:00:13]} 42. Ra6 {[%clk 0:00:12]}  Rd2 {[%clk 0:00:04]} 43. Qc6 {[%clk 0:00:13]}  Rg8 {[%clk 0:00:04]} 44. Nf6 {[%clk 0:00:13]}  Rg7 {[%clk 0:00:05]} 45. Ng4+ {[%clk 0:00:13]} 1-0


[Site "https://www.chess.com"]

[Event "Titled Tuesday Blitz April 26 Early 2022"]
[White "Fajdetic, Hrvoje"]
[Black "Miszler, Levente"]
[WhiteFideId "14501945"]
[BlackFideId "763276"]
[WhiteElo "2172"]
[BlackElo "1966"]
[Result "1-0"]
[Round "05"]
[TimeControl "180+1"]
[Date "2022.04.26"]
[WhiteClock "0:01:44"]
[BlackClock "0:00:51"]

1. d4 {[%clk 0:03:00]}  d5 {[%clk 0:02:58]} 2. Bf4 {[%clk 0:03:00]}  c5 {[%clk 0:02:55]} 3. e3 {[%clk 0:03:00]}  Nc6 {[%clk 0:02:55]} 4. Nc3 {[%clk 0:03:00]}  a6 {[%clk 0:02:43]} 5. Nce2 {[%clk 0:02:59]}  f6 {[%clk 0:02:37]} 6. Nf3 {[%clk 0:02:58]}  e6 {[%clk 0:02:32]} 7. c3 {[%clk 0:02:56]}  Bd6 {[%clk 0:02:30]} 8. h4 {[%clk 0:02:56]}  Nge7 {[%clk 0:02:30]} 9. h5 {[%clk 0:02:55]}  Qc7 {[%clk 0:02:25]} 10. dxc5 {[%clk 0:02:47]}  Bxf4 {[%clk 0:02:25]} 11. Nxf4 {[%clk 0:02:48]}  Ne5 {[%clk 0:02:19]} 12. b4 {[%clk 0:02:41]}  b6 {[%clk 0:02:17]} 13. Nxe5 {[%clk 0:02:34]}  fxe5 {[%clk 0:02:15]} 14. Nd3 {[%clk 0:02:25]}  e4 {[%clk 0:02:15]} 15. Nf4 {[%clk 0:02:20]}  bxc5 {[%clk 0:02:15]} 16. bxc5 {[%clk 0:02:16]}  Qxc5 {[%clk 0:02:14]} 17. Qd4 {[%clk 0:02:16]}  Qxd4 {[%clk 0:01:47]} 18. cxd4 {[%clk 0:02:17]}  Kf7 {[%clk 0:01:39]} 19. f3 {[%clk 0:02:04]}  exf3 {[%clk 0:01:36]} 20. gxf3 {[%clk 0:02:05]}  Bd7 {[%clk 0:01:35]} 21. Bh3 {[%clk 0:02:01]}  Rhc8 {[%clk 0:01:30]} 22. e4 {[%clk 0:01:52]}  dxe4 {[%clk 0:01:24]} 23. fxe4 {[%clk 0:01:51]}  Rc4 {[%clk 0:01:22]} 24. Rd1 {[%clk 0:01:50]}  Rb8 {[%clk 0:01:14]} 25. O-O {[%clk 0:01:50]}  Ke8 {[%clk 0:00:55]} 26. Nxe6 {[%clk 0:01:46]}  Rb2 {[%clk 0:00:51]} 27. Rf8# {[%clk 0:01:44]} 1-0


[Site "https://www.chess.com"]

[Event "Titled Tuesday Blitz April 26 Early 2022"]
[White "Fernandez Hernandez, Gerardo"]
[Black "Buscar, Michael"]
[WhiteFideId "2207400"]
[BlackFideId "2603616"]
[WhiteElo "2191"]
[BlackElo "2010"]
[Result "0-1"]
[Round "05"]
[TimeControl "180+1"]
[Date "2022.04.26"]
[WhiteClock "0:00:01"]
[BlackClock "0:00:19"]

1. e4 {[%clk 0:03:00]}  c5 {[%clk 0:02:59]} 2. d3 {[%clk 0:03:00]}  d5 {[%clk 0:02:59]} 3. Nd2 {[%clk 0:02:59]}  Nc6 {[%clk 0:02:57]} 4. Ngf3 {[%clk 0:02:59]}  dxe4 {[%clk 0:02:53]} 5. dxe4 {[%clk 0:02:58]}  g6 {[%clk 0:02:53]} 6. Be2 {[%clk 0:02:50]}  Bg7 {[%clk 0:02:53]} 7. O-O {[%clk 0:02:50]}  f6 {[%clk 0:02:51]} 8. c3 {[%clk 0:02:46]}  e5 {[%clk 0:02:51]} 9. Qb3 {[%clk 0:02:34]}  Qb6 {[%clk 0:02:50]} 10. Nc4 {[%clk 0:02:30]}  Qxb3 {[%clk 0:02:49]} 11. axb3 {[%clk 0:02:31]}  Bf8 {[%clk 0:02:34]} 12. Nb6 {[%clk 0:02:27]}  Rb8 {[%clk 0:02:33]} 13. Nxc8 {[%clk 0:02:27]}  Rxc8 {[%clk 0:02:34]} 14. Bc4 {[%clk 0:02:23]}  Nge7 {[%clk 0:02:22]} 15. Be3 {[%clk 0:02:12]}  b6 {[%clk 0:02:14]} 16. Bb5 {[%clk 0:02:05]}  Kd8 {[%clk 0:02:09]} 17. Rfd1+ {[%clk 0:02:01]}  Kc7 {[%clk 0:02:10]} 18. Nd2 {[%clk 0:01:54]}  Bg7 {[%clk 0:02:07]} 19. Nc4 {[%clk 0:01:49]}  Rcd8 {[%clk 0:02:07]} 20. Kf1 {[%clk 0:01:39]}  f5 {[%clk 0:02:06]} 21. f3 {[%clk 0:01:23]}  f4 {[%clk 0:01:55]} 22. Bf2 {[%clk 0:01:14]}  g5 {[%clk 0:01:54]} 23. Ke2 {[%clk 0:01:08]}  h5 {[%clk 0:01:49]} 24. g3 {[%clk 0:01:00]}  Bf6 {[%clk 0:01:46]} 25. gxf4 {[%clk 0:00:59]}  exf4 {[%clk 0:01:42]} 26. e5 {[%clk 0:00:54]}  Rxd1 {[%clk 0:01:26]} 27. Rxd1 {[%clk 0:00:48]}  Bxe5 {[%clk 0:01:23]} 28. Nxe5 {[%clk 0:00:36]}  Nxe5 {[%clk 0:01:22]} 29. b4 {[%clk 0:00:20]}  cxb4 {[%clk 0:00:42]} 30. Bd4 {[%clk 0:00:20]}  N7g6 {[%clk 0:00:37]} 31. cxb4 {[%clk 0:00:15]}  Rd8 {[%clk 0:00:34]} 32. Bc3 {[%clk 0:00:04]}  Rxd1 {[%clk 0:00:32]} 33. Kxd1 {[%clk 0:00:05]}  Nxf3 {[%clk 0:00:31]} 34. Bf6 {[%clk 0:00:05]}  g4 {[%clk 0:00:26]} 35. h3 {[%clk 0:00:04]}  gxh3 {[%clk 0:00:23]} 36. Be2 {[%clk 0:00:04]}  Nge5 {[%clk 0:00:18]} 37. Bxe5+ {[%clk 0:00:01]}  Nxe5 {[%clk 0:00:19]} 0-1


[Site "https://www.chess.com"]

[Event "Titled Tuesday Blitz April 26 Early 2022"]
[White "Fiorito, Fabian"]
[Black "Koziorowicz, Michal"]
[WhiteFideId "100200"]
[BlackFideId "21809194"]
[WhiteElo "2395"]
[BlackElo "2235"]
[Result "1/2-1/2"]
[Round "05"]
[TimeControl "180+1"]
[Date "2022.04.26"]
[WhiteClock "0:00:14"]
[BlackClock "0:00:08"]

1. d4 {[%clk 0:03:00]}  f5 {[%clk 0:03:00]} 2. Nc3 {[%clk 0:03:00]}  Nf6 {[%clk 0:03:00]} 3. Bf4 {[%clk 0:03:00]}  e6 {[%clk 0:02:57]} 4. e3 {[%clk 0:02:58]}  Be7 {[%clk 0:02:58]} 5. h3 {[%clk 0:02:41]}  O-O {[%clk 0:02:57]} 6. Qd2 {[%clk 0:02:40]}  d6 {[%clk 0:02:57]} 7. O-O-O {[%clk 0:02:40]}  Nc6 {[%clk 0:02:44]} 8. Nf3 {[%clk 0:02:35]}  Ne4 {[%clk 0:02:41]} 9. Qe1 {[%clk 0:02:26]}  d5 {[%clk 0:02:01]} 10. Nxe4 {[%clk 0:02:21]}  fxe4 {[%clk 0:02:01]} 11. Nd2 {[%clk 0:02:16]}  Bd6 {[%clk 0:02:01]} 12. g3 {[%clk 0:02:09]}  e5 {[%clk 0:01:49]} 13. dxe5 {[%clk 0:02:09]}  Nxe5 {[%clk 0:01:50]} 14. Bxe5 {[%clk 0:01:46]}  Bxe5 {[%clk 0:01:49]} 15. Nxe4 {[%clk 0:01:43]}  Bf5 {[%clk 0:01:29]} 16. Nc3 {[%clk 0:01:38]}  c6 {[%clk 0:01:28]} 17. Bg2 {[%clk 0:01:35]}  Qf6 {[%clk 0:01:24]} 18. f4 {[%clk 0:01:28]}  Bxc3 {[%clk 0:01:24]} 19. Qxc3 {[%clk 0:01:29]}  Qxc3 {[%clk 0:01:24]} 20. bxc3 {[%clk 0:01:30]}  Rae8 {[%clk 0:01:24]} 21. Kd2 {[%clk 0:01:30]}  Be4 {[%clk 0:01:20]} 22. Bxe4 {[%clk 0:01:28]}  Rxe4 {[%clk 0:01:21]} 23. Rde1 {[%clk 0:01:28]}  Rfe8 {[%clk 0:01:21]} 24. Rhf1 {[%clk 0:01:21]}  Ra4 {[%clk 0:01:20]} 25. Ra1 {[%clk 0:01:19]}  Kf7 {[%clk 0:01:20]} 26. Rfb1 {[%clk 0:01:17]}  b6 {[%clk 0:01:14]} 27. Rb4 {[%clk 0:01:18]}  Ra5 {[%clk 0:01:10]} 28. a4 {[%clk 0:01:18]}  Rc5 {[%clk 0:01:01]} 29. Kd3 {[%clk 0:01:15]}  Kf6 {[%clk 0:00:53]} 30. Re1 {[%clk 0:01:07]}  Rd8 {[%clk 0:00:51]} 31. Rd4 {[%clk 0:01:00]}  b5 {[%clk 0:00:42]} 32. axb5 {[%clk 0:00:58]}  cxb5 {[%clk 0:00:43]} 33. Ra1 {[%clk 0:00:45]}  Rd7 {[%clk 0:00:41]} 34. Ra6+ {[%clk 0:00:44]}  Kf7 {[%clk 0:00:40]} 35. Kd2 {[%clk 0:00:43]}  Rdc7 {[%clk 0:00:37]} 36. Rd3 {[%clk 0:00:41]}  b4 {[%clk 0:00:23]} 37. cxb4 {[%clk 0:00:42]}  Rxc2+ {[%clk 0:00:23]} 38. Kd1 {[%clk 0:00:40]}  Rg2 {[%clk 0:00:20]} 39. g4 {[%clk 0:00:29]}  Rg3 {[%clk 0:00:20]} 40. g5 {[%clk 0:00:27]}  Rxh3 {[%clk 0:00:19]} 41. Rd6 {[%clk 0:00:26]}  Rb7 {[%clk 0:00:16]} 42. R6xd5 {[%clk 0:00:26]}  Rxb4 {[%clk 0:00:15]} 43. Ra5 {[%clk 0:00:17]}  Rb2 {[%clk 0:00:11]} 44. Kc1 {[%clk 0:00:16]}  Re2 {[%clk 0:00:11]} 45. Rxa7+ {[%clk 0:00:14]}  Kg6 {[%clk 0:00:12]} 46. Ra5 {[%clk 0:00:11]}  Rh1+ {[%clk 0:00:11]} 47. Rd1 {[%clk 0:00:12]}  Rxd1+ {[%clk 0:00:09]} 48. Kxd1 {[%clk 0:00:13]}  Rxe3 {[%clk 0:00:10]} 49. Kd2 {[%clk 0:00:12]}  Re4 {[%clk 0:00:10]} 50. Ra6+ {[%clk 0:00:10]}  Kh5 {[%clk 0:00:07]} 51. Ra7 {[%clk 0:00:10]}  Kg6 {[%clk 0:00:05]} 52. f5+ {[%clk 0:00:10]}  Kxf5 {[%clk 0:00:02]} 53. Rxg7 {[%clk 0:00:10]}  Rh4 {[%clk 0:00:03]} 54. Ke3 {[%clk 0:00:11]}  Rh3+ {[%clk 0:00:03]} 55. Kf2 {[%clk 0:00:11]}  Kf4 {[%clk 0:00:03]} 56. Kg2 {[%clk 0:00:11]}  Rh5 {[%clk 0:00:03]} 57. Kf2 {[%clk 0:00:10]}  Kf5 {[%clk 0:00:04]} 58. Ke3 {[%clk 0:00:10]}  Kg4 {[%clk 0:00:04]} 59. Ke4 {[%clk 0:00:10]}  Rh1 {[%clk 0:00:04]} 60. Ke5 {[%clk 0:00:09]}  Kh5 {[%clk 0:00:04]} 61. Kf6 {[%clk 0:00:08]}  Rf1+ {[%clk 0:00:04]} 62. Ke6 {[%clk 0:00:09]}  Re1+ {[%clk 0:00:04]} 63. Kf6 {[%clk 0:00:09]}  Rf1+ {[%clk 0:00:04]} 64. Ke7 {[%clk 0:00:09]}  Rf2 {[%clk 0:00:05]} 65. Ke6 {[%clk 0:00:09]}  Re2+ {[%clk 0:00:05]} 66. Kf5 {[%clk 0:00:09]}  Rf2+ {[%clk 0:00:05]} 67. Ke5 {[%clk 0:00:10]}  Kg4 {[%clk 0:00:05]} 68. g6 {[%clk 0:00:09]}  h5 {[%clk 0:00:04]} 69. Rh7 {[%clk 0:00:08]}  Rf8 {[%clk 0:00:04]} 70. g7 {[%clk 0:00:08]}  Rg8 {[%clk 0:00:04]} 71. Kf6 {[%clk 0:00:08]}  h4 {[%clk 0:00:05]} 72. Kf7 {[%clk 0:00:08]}  Rxg7+ {[%clk 0:00:05]} 73. Rxg7+ {[%clk 0:00:08]}  Kf3 {[%clk 0:00:05]} 74. Kf6 {[%clk 0:00:08]}  h3 {[%clk 0:00:05]} 75. Rh7 {[%clk 0:00:08]}  Kg2 {[%clk 0:00:06]} 76. Kf5 {[%clk 0:00:09]}  h2 {[%clk 0:00:06]} 77. Rg7+ {[%clk 0:00:10]}  Kf2 {[%clk 0:00:07]} 78. Rh7 {[%clk 0:00:10]}  Kg1 {[%clk 0:00:08]} 79. Rg7+ {[%clk 0:00:11]}  Kf1 {[%clk 0:00:08]} 80. Rh7 {[%clk 0:00:12]}  Kg1 {[%clk 0:00:08]} 81. Rg7+ {[%clk 0:00:12]}  Kf1 {[%clk 0:00:09]} 82. Rh7 {[%clk 0:00:13]}  Kg2 {[%clk 0:00:08]} 83. Kf4 {[%clk 0:00:13]}  h1=Q {[%clk 0:00:07]} 84. Rxh1 {[%clk 0:00:14]}  Kxh1 {[%clk 0:00:08]} 1/2-1/2


[Site "https://www.chess.com"]